fUST/lending_fUST_20250630
["ID","MTS","AMOUNT","RATE_DAILY","PERIOD"]
[368624104,1751245838148,-460.0,0.00018267,2]
[368624105,1751245838158,-460.0,0.00018267,2]
[368624106,1751245838168,-460.0,0.00018267,2]
[368624107,1751245838177,-460.0,0.00018267,2]
[368624108,1751245838186,-460.0,0.00018267,2]
[368624109,1751245838195,-460.0,0.00018267,2]
[368624110,1751245838205,-460.0,0.00018267,2]
[368624111,1751245838215,-16.82509682,0.00018267,2]
[368624112,1751245838227,-558.9533312,0.00018267,2]
[368624113,1751245838239,-9.05157198,0.00018267,2]
[368624114,1751245838249,-460.0,0.00018267,2]
[368624115,1751245838259,-460.0,0.00018267,2]
[368624116,1751245838268,-460.0,0.00018267,2]
[368624117,1751245838277,-460.0,0.00018267,2]
[368624118,1751245838288,-460.0,0.00018267,2]
[368624119,1751245838297,-509.55,0.00018267,2]
[368624120,1751245838307,-460.0,0.00018267,2]
[368624121,1751245838316,-460.0,0.00018267,2]
[368624122,1751245838326,-460.0,0.00018267,2]
[368624123,1751245838335,-460.0,0.00018267,2]
[368624124,1751245838344,-460.0,0.00018267,2]
[368624125,1751245838353,-460.0,0.00018267,2]
[368624126,1751245838363,-460.0,0.00018267,2]
[368624127,1751245838374,-1594.45,0.00018267,2]
[368624128,1751245838385,-979.73,0.00018267,2]
[368624129,1751245838394,-460.0,0.00018267,2]
[368624130,1751245838404,-460.0,0.00018267,2]
[368624131,1751245838415,-113.92261974,0.00018267,2]
[368624132,1751245838427,-346.07738026,0.00018267,2]
[368624133,1751245838437,-460.0,0.00018267,2]
[368624134,1751245838447,-460.0,0.00018267,2]
[368624135,1751245838457,-460.0,0.00018267,2]
[368624136,1751245838466,-460.0,0.00018267,2]
[368624137,1751245838476,-1605.68,0.00018267,2]
[368624138,1751245838485,-460.0,0.00018267,2]
[368624139,1751245838495,-1309.48,0.00018267,2]
[368624140,1751245838504,-460.0,0.00018267,2]
[368624141,1751245838515,-460.0,0.00018267,2]
[368624142,1751245838524,-818.0,0.00018267,2]
[368624143,1751245838535,-945.21,0.00018267,2]
[368624144,1751245838544,-460.0,0.00018267,2]
[368624145,1751245838554,-460.0,0.00018267,2]
[368624146,1751245838563,-460.0,0.00018267,2]
[368624147,1751245838574,-11.77203706,0.00018267,2]
[368624148,1751245838586,-480.56796294,0.00018267,2]
[368624149,1751245838596,-460.0,0.00018267,2]
[368624150,1751245838605,-460.0,0.00018267,2]
[368624151,1751245838615,-500.0,0.00018268,2]
[368624152,1751245838625,-445.1151962,0.00018268,2]
[368624153,1751245838635,-460.0,0.00018268,2]
[368624154,1751245838645,-460.0,0.00018268,2]
[368624155,1751245838654,-460.0,0.00018268,2]
[368624156,1751245838664,-460.0,0.00018268,2]
[368624157,1751245838674,-460.0,0.00018268,2]
[368624158,1751245838683,-460.0,0.00018268,2]
[368624159,1751245838692,-460.0,0.00018268,2]
[368624160,1751245838702,-460.0,0.00018268,2]
[368624161,1751245838711,-460.0,0.00018268,2]
[368624162,1751245838720,-460.0,0.00018268,2]
[368624163,1751245838892,-460.0,0.00018268,2]
[368624164,1751245838902,-460.0,0.00018268,2]
[368624165,1751245838912,-460.0,0.00018268,2]
[368624166,1751245838922,-460.0,0.00018268,2]
[368624167,1751245838931,-460.0,0.00018268,2]
[368624168,1751245838941,-460.0,0.00018268,2]
[368624169,1751245838951,-460.0,0.00018268,2]
[368624170,1751245838961,-460.0,0.00018268,2]
[368624171,1751245838970,-460.0,0.00018268,2]
[368624172,1751245838979,-460.0,0.00018268,2]
[368624173,1751245838988,-460.0,0.00018268,2]
[368624174,1751245838998,-460.0,0.00018268,2]
[368624175,1751245839007,-460.0,0.00018268,2]
[368624176,1751245839017,-460.0,0.00018268,2]
[368624177,1751245839026,-460.0,0.00018268,2]
[368624178,1751245839037,-460.0,0.00018268,2]
[368624179,1751245839046,-468.17266732,0.00018268,2]
[368624180,1751245839056,-460.0,0.00018268,2]
[368624181,1751245839066,-460.0,0.00018268,2]
[368624182,1751245839075,-500.0,0.00018268,2]
[368624183,1751245839085,-460.0,0.00018268,2]
[368624184,1751245839095,-460.0,0.00018268,2]
[368624185,1751245839104,-460.0,0.00018268,2]
[368624186,1751245839113,-460.0,0.00018268,2]
[368624187,1751245839123,-460.0,0.00018268,2]
[368624188,1751245839131,-460.0,0.00018268,2]
[368624189,1751245839141,-460.0,0.00018268,2]
[368624190,1751245839150,-535.81381949,0.00018268,2]
[368624191,1751245839160,-460.0,0.00018268,2]
[368624192,1751245839169,-460.0,0.00018268,2]
[368624193,1751245839179,-460.0,0.00018268,2]
[368624194,1751245839189,-460.0,0.00018268,2]
[368624195,1751245839198,-460.0,0.00018268,2]
[368624196,1751245839208,-242.23262527,0.00018268,2]
[368624197,1751245839218,-460.0,0.00018268,2]
[368624198,1751245839228,-460.0,0.00018268,2]
[368624199,1751245839237,-460.0,0.00018268,2]
[368624200,1751245839246,-460.0,0.00018268,2]
[368624201,1751245839257,-460.0,0.00018268,2]
[368624202,1751245839266,-460.0,0.00018268,2]
[368624203,1751245839275,-460.0,0.00018268,2]
[368624204,1751245839285,-460.0,0.00018268,2]
[368624205,1751245839294,-1015.24232608,0.00018268,2]
[368624206,1751245839305,-460.0,0.00018268,2]
[368624207,1751245839315,-1122.56629493,0.00018442,2]
[368624208,1751245839323,-592.71611703,0.00018536,2]
[368624209,1751245839332,-460.0,0.00018536,2]
[368624210,1751245839342,-460.0,0.00018537,2]
[368624211,1751245839351,-460.0,0.00018537,2]
[368624212,1751245839360,-460.0,0.00018537,2]
[368624213,1751245839370,-460.0,0.00018537,2]
[368624214,1751245839382,-2308.0,0.00018537,2]
[368624215,1751245839392,-460.0,0.00018537,2]
[368624216,1751245839401,-1123.05,0.00018537,2]
[368624217,1751245839411,-460.0,0.00018537,2]
[368624218,1751245839421,-460.0,0.00018537,2]
[368624219,1751245839431,-1356.42,0.00018537,2]
[368624220,1751245839440,-2315.93,0.00018537,2]
[368624221,1751245839451,-460.0,0.00018537,2]
[368624222,1751245839461,-460.0,0.00018537,2]
[368624223,1751245839471,-2127.05,0.00018537,2]
[368624224,1751245839480,-3220.86,0.00018537,2]
[368624225,1751245839490,-460.0,0.00018537,2]
[368624226,1751245839499,-460.0,0.00018537,2]
[368624227,1751245839509,-1360.33,0.00018537,2]
[368624228,1751245839518,-460.0,0.00018537,2]
[368624229,1751245839527,-460.0,0.00018537,2]
[368624230,1751245839538,-1376.95,0.00018537,2]
[368624231,1751245839548,-1603.75,0.00018537,2]
[368624232,1751245839558,-646.17,0.00018537,2]
[368624233,1751245839568,-473.9,0.00018537,2]
[368624234,1751245839577,-460.0,0.00018537,2]
[368624235,1751245839587,-460.0,0.00018537,2]
[368624236,1751245839596,-460.0,0.00018537,2]
[368624237,1751245839605,-222.77221466,0.00018538,2]
[368624239,1751245839615,-460.0,0.00018538,2]
[368624241,1751245839625,-460.0,0.00018538,2]
[368624242,1751245839634,-460.0,0.00018538,2]
[368624243,1751245839645,-460.0,0.00018538,2]
[368624244,1751245839654,-460.0,0.00018538,2]
[368624245,1751245839664,-460.0,0.00018538,2]
[368624247,1751245839674,-211.62673082,0.00018538,2]
[368624249,1751245839683,-460.0,0.00018538,2]
[368624251,1751245839692,-460.0,0.00018538,2]
[368624253,1751245839702,-460.0,0.00018538,2]
[368624255,1751245839711,-892.66,0.00018538,2]
[368624256,1751245839720,-460.0,0.00018538,2]
[368624257,1751245839730,-460.0,0.00018538,2]
[368624258,1751245839740,-460.0,0.00018538,2]
[368624259,1751245839750,-460.0,0.00018538,2]
[368624260,1751245839759,-535.58,0.00018538,2]
[368624261,1751245839768,-536.6620076,0.00018538,2]
[368624262,1751245839777,-460.0,0.00018538,2]
[368624263,1751245839787,-460.0,0.00018538,2]
[368624264,1751245839796,-720.33,0.00018538,2]
[368624265,1751245839805,-460.0,0.00018538,2]
[368624266,1751245839814,-510.71,0.00018538,2]
[368624267,1751245839823,-460.0,0.00018538,2]
[368624268,1751245839832,-460.0,0.00018538,2]
[368624269,1751245839842,-460.0,0.00018538,2]
[368624270,1751245839851,-569.32,0.00018538,2]
[368624271,1751245839860,-460.0,0.00018538,2]
[368624272,1751245839869,-562.86,0.00018538,2]
[368624273,1751245839878,-801.14,0.00018538,2]
[368624274,1751245839890,-460.0,0.00018538,2]
[368624275,1751245839899,-617.62,0.00018538,2]
[368624276,1751245839908,-460.0,0.00018538,2]
[368624277,1751245839917,-3976.25,0.00018538,2]
[368624278,1751245839926,-460.0,0.00018538,2]
[368624279,1751245839935,-460.0,0.00018538,2]
[368624280,1751245839945,-460.0,0.00018538,2]
[368624281,1751245839954,-1246.0,0.00018538,2]
[368624282,1751245839963,-460.0,0.00018538,2]
[368624283,1751245839973,-808.37,0.00018538,2]
[368624284,1751245839982,-460.0,0.00018539,2]
[368624285,1751245839991,-460.0,0.00018539,2]
[368624286,1751245840001,-460.0,0.00018539,2]
[368624287,1751245840010,-492.76,0.00018539,2]
[368624288,1751245840019,-460.0,0.00018539,2]
[368624289,1751245840028,-460.0,0.00018539,2]
[368624290,1751245840038,-460.0,0.00018539,2]
[368624291,1751245840047,-460.0,0.00018539,2]
[368624292,1751245840057,-460.0,0.00018539,2]
[368624293,1751245840066,-666.43,0.00018539,2]
[368624294,1751245840075,-549.17,0.00018539,2]
[368624295,1751245840084,-460.0,0.00018539,2]
[368624296,1751245840093,-460.0,0.00018539,2]
[368624297,1751245840103,-460.0,0.00018539,2]
[368624298,1751245840112,-460.0,0.00018539,2]
[368624299,1751245840121,-460.0,0.00018539,2]
[368624300,1751245840131,-644.17,0.0001854,2]
[368624301,1751245840140,-460.0,0.0001854,2]
[368624302,1751245840149,-1204.1,0.0001854,2]
[368624303,1751245840159,-460.0,0.0001854,2]
[368624304,1751245840168,-460.0,0.00018541,2]
[368624305,1751245840177,-584.83,0.00018541,2]
[368624306,1751245840186,-460.0,0.00018541,2]
[368624307,1751245840196,-1594.45,0.00018541,2]
[368624308,1751245840205,-979.73,0.00018541,2]
[368624309,1751245840214,-460.0,0.00018541,2]
[368624310,1751245840224,-460.0,0.00018541,2]
[368624311,1751245840233,-460.0,0.00018541,2]
[368624312,1751245840243,-1605.68,0.00018541,2]
[368624313,1751245840252,-1309.48,0.00018541,2]
[368624314,1751245840261,-460.0,0.00018541,2]
[368624315,1751245840271,-818.0,0.00018541,2]
[368624316,1751245840280,-945.21,0.00018541,2]
[368624317,1751245840289,-492.34,0.00018541,2]
[368624318,1751245840299,-460.0,0.00018541,2]
[368624319,1751245840308,-460.0,0.00018542,2]
[368624320,1751245840317,-5000.0,0.00018554,2]
[368624321,1751245840327,-207.4,0.00018554,2]
[368624322,1751245840336,-690.642,0.00018554,2]
[368624323,1751245840346,-500.0,0.00018554,2]
[368624324,1751245840355,-500.0,0.00018554,2]
[368624325,1751245840364,-500.0,0.00018554,2]
[368624326,1751245840375,-500.0,0.00018554,2]
[368624327,1751245840386,-500.0,0.00018554,2]
[368624328,1751245840395,-500.0,0.00018554,2]
[368624329,1751245840406,-500.0,0.00018554,2]
[368624330,1751245840416,-500.0,0.00018554,2]
[368624331,1751245840426,-500.0,0.00018554,2]
[368624332,1751245840435,-500.0,0.00018554,2]
[368624333,1751245840445,-500.0,0.00018554,2]
[368624334,1751245840456,-500.0,0.00018554,2]
[368624335,1751245840466,-500.0,0.00018554,2]
[368624336,1751245840475,-500.0,0.00018554,2]
[368624337,1751245840485,-500.0,0.00018554,2]
[368624338,1751245840494,-500.0,0.00018554,2]
[368624339,1751245840504,-500.0,0.00018554,2]
[368624340,1751245840514,-716.195754,0.00018609,2]
[368624341,1751245840524,-742.6949969,0.00018664,2]
[368624342,1751245840533,-366.235562,0.000187,2]
[368624343,1751245840544,-318.0488909,0.000187,2]
[368624344,1751245840553,-726.9398949,0.000187,2]
[368624345,1751245840563,-366.235562,0.000187,2]
[368624346,1751245840573,-770.17471178,0.00018719,2]
[368624347,1751245840583,-798.67117612,0.00018774,2]
[368624348,1751245840592,-159.291355,0.000188,2]
[368624349,1751245840602,-354.9576342,0.000188,2]
[368624350,1751245840611,-366.235562,0.000188,2]
[368624351,1751245840621,-159.291355,0.000188,2]
[368624352,1751245840630,-366.235562,0.000188,2]
[368624353,1751245840640,-366.235562,0.000188,2]
[368624354,1751245840649,-158.5101596,0.000188,2]
[368624355,1751245840659,-1148.824053,0.000188,2]
[368624356,1751245840668,-2331.39579282,0.000188,2]
[368624357,1751245840678,-460.0,0.00018811,2]
[368624358,1751245840687,-2308.0,0.00018811,2]
[368624359,1751245840697,-460.0,0.00018811,2]
[368624360,1751245840706,-1123.05,0.00018811,2]
[368624361,1751245840716,-460.0,0.00018811,2]
[368624362,1751245840727,-1356.42,0.00018811,2]
[368624363,1751245840736,-2315.93,0.00018811,2]
[368624364,1751245840746,-246.48639449,0.00018811,2]
[368624365,1751245840760,-213.51360551,0.00018811,2]
[368624366,1751245840770,-460.0,0.00018811,2]
[368624367,1751245840779,-19.93119396,0.00018811,2]
[368624368,1751245840790,-2107.11880604,0.00018811,2]
[368624369,1751245840799,-341.19994434,0.00018811,2]
[368624370,1751245840811,-2750.73635981,0.00018811,2]
[368624371,1751245840822,-128.92369585,0.00018811,2]
[368624372,1751245840832,-460.0,0.00018811,2]
[368624373,1751245840842,-460.0,0.00018811,2]
[368624374,1751245840852,-1012.65000451,0.00018811,2]
[368624375,1751245840863,-347.67999549,0.00018811,2]
[368624376,1751245840873,-296.65176105,0.00018811,2]
[368624377,1751245840884,-163.34823895,0.00018811,2]
[368624378,1751245840894,-93.97073515,0.00018811,2]
[368624379,1751245840908,-366.02926485,0.00018811,2]
[368624380,1751245840918,-1376.95,0.00018811,2]
[368624381,1751245840927,-1603.75,0.00018811,2]
[368624382,1751245840936,-646.17,0.00018811,2]
[368624383,1751245840945,-473.9,0.00018811,2]
[368624384,1751245840955,-460.0,0.00018811,2]
[368624385,1751245840964,-460.0,0.00018811,2]
[368624386,1751245840975,-95.59178218,0.00018812,2]
[368624387,1751245840987,-364.40821782,0.00018812,2]
[368624388,1751245840997,-892.66,0.00018812,2]
[368624389,1751245841006,-343.99747291,0.00018812,2]
[368624390,1751245841018,-116.00252709,0.00018812,2]
[368624391,1751245841027,-460.0,0.00018812,2]
[368624392,1751245841037,-192.12129543,0.00018812,2]
[368624393,1751245841320,-267.87870457,0.00018812,2]
[368624394,1751245841334,-239.93834759,0.00018812,2]
[368624395,1751245841346,-220.06165241,0.00018812,2]
[368624396,1751245841356,-535.58,0.00018812,2]
[368624397,1751245841365,-460.0,0.00018812,2]
[368624398,1751245841378,-720.33,0.00018812,2]
[368624399,1751245841387,-460.0,0.00018812,2]
[368624400,1751245841397,-510.71,0.00018812,2]
[368624401,1751245841406,-460.0,0.00018812,2]
[368624402,1751245841416,-460.0,0.00018812,2]
[368624403,1751245841425,-569.32,0.00018812,2]
[368624404,1751245841435,-460.0,0.00018812,2]
[368624405,1751245841444,-562.86,0.00018812,2]
[368624406,1751245841454,-801.14,0.00018812,2]
[368624407,1751245841463,-460.0,0.00018812,2]
[368624408,1751245841473,-617.62,0.00018812,2]
[368624409,1751245841482,-460.0,0.00018812,2]
[368624410,1751245841491,-3976.25,0.00018812,2]
[368624411,1751245841501,-460.0,0.00018812,2]
[368624412,1751245841510,-460.0,0.00018812,2]
[368624413,1751245841519,-460.0,0.00018812,2]
[368624414,1751245841529,-1246.0,0.00018812,2]
[368624415,1751245841538,-460.0,0.00018812,2]
[368624416,1751245841547,-808.37,0.00018812,2]
[368624417,1751245841557,-509.92658696,0.00018813,2]
[368624418,1751245841566,-460.0,0.00018813,2]
[368624419,1751245841576,-460.0,0.00018813,2]
[368624420,1751245841585,-460.0,0.00018813,2]
[368624421,1751245841595,-492.76,0.00018813,2]
[368624422,1751245841603,-460.0,0.00018813,2]
[368624423,1751245841613,-460.0,0.00018813,2]
[368624424,1751245841623,-460.0,0.00018813,2]
[368624425,1751245841632,-666.43,0.00018813,2]
[368624426,1751245841642,-549.17,0.00018813,2]
[368624427,1751245841651,-460.0,0.00018813,2]
[368624428,1751245841660,-460.0,0.00018813,2]
[368624429,1751245841669,-460.0,0.00018813,2]
[368624430,1751245841679,-460.0,0.00018813,2]
[368624431,1751245841689,-644.17,0.00018814,2]
[368624432,1751245841698,-460.0,0.00018814,2]
[368624433,1751245841707,-1204.1,0.00018814,2]
[368624434,1751245841717,-460.0,0.00018814,2]
[368624435,1751245841726,-460.0,0.00018815,2]
[368624436,1751245841736,-584.83,0.00018815,2]
[368624437,1751245841745,-1594.45,0.00018815,2]
[368624438,1751245841756,-979.73,0.00018815,2]
[368624439,1751245841765,-460.0,0.00018815,2]
[368624440,1751245841775,-460.0,0.00018815,2]
[368624441,1751245841784,-1605.68,0.00018815,2]
[368624442,1751245841793,-1309.48,0.00018815,2]
[368624443,1751245841803,-460.0,0.00018815,2]
[368624444,1751245841812,-818.0,0.00018815,2]
[368624445,1751245841822,-945.21,0.00018815,2]
[368624446,1751245841831,-492.34,0.00018815,2]
[368624447,1751245841840,-460.0,0.00018815,2]
[368624448,1751245841850,-460.0,0.00018816,2]
[368624449,1751245841860,-152.87705121,0.00018829,2]
[368624450,1751245841869,-1122.56629492,0.00018854,2]
[368624451,1751245841878,-366.235562,0.000189,2]
[368624452,1751245841887,-366.235562,0.000189,2]
[368624453,1751245841897,-1926.03156144,0.000189,2]
[368624454,1751245841906,-4237.12478909,0.000189,2]
[368624455,1751245841915,-366.235562,0.00019,2]
[368624456,1751245841924,-366.235562,0.00019,2]
[368624457,1751245841933,-366.235562,0.00019,2]
[368624458,1751245841943,-366.235562,0.00019,2]
[368624459,1751245841952,-366.235562,0.00019,2]
[368624460,1751245841961,-366.235562,0.00019,2]
[368624461,1751245841971,-306.0,0.00019,2]
[368624462,1751245841980,-1150.4312616,0.00019,2]
[368624463,1751245841989,-156.1272779,0.00019,2]
[368624464,1751245841999,-366.235562,0.00019014,2]
[368624465,1751245842009,-366.235562,0.00019014,2]
[368624466,1751245842018,-366.235562,0.00019014,2]
[368624467,1751245842027,-366.235562,0.00019014,2]
[368624468,1751245842037,-366.235562,0.00019041,2]
[368624469,1751245842047,-366.235562,0.00019041,2]
[368624470,1751245842056,-4237.12478886,0.00019072,2]
[368624471,1751245842066,-460.0,0.00019085,2]
[368624472,1751245842075,-336.10138922,0.00019085,2]
[368624473,1751245842085,-2308.0,0.00019085,2]
[368624474,1751245842094,-511.47367336,0.00019085,2]
[368624475,1751245842103,-1123.05,0.00019085,2]
[368624476,1751245842113,-460.0,0.00019085,2]
[368624477,1751245842122,-1356.42,0.00019085,2]
[368624478,1751245842132,-2315.93,0.00019085,2]
[368624479,1751245842141,-460.0,0.00019085,2]
[368624480,1751245842150,-460.0,0.00019085,2]
[368624481,1751245842159,-2127.05,0.00019085,2]
[368624482,1751245842169,-3220.86,0.00019085,2]
[368624483,1751245842178,-460.0,0.00019085,2]
[368624484,1751245842187,-460.0,0.00019085,2]
[368624485,1751245842196,-1360.33,0.00019085,2]
[368624486,1751245842206,-460.0,0.00019085,2]
[368624487,1751245842215,-460.0,0.00019085,2]
[368624488,1751245842224,-1376.95,0.00019085,2]
[368624489,1751245842233,-1603.75,0.00019085,2]
[368624490,1751245842243,-646.17,0.00019085,2]
[368624491,1751245842252,-473.9,0.00019085,2]
[368624492,1751245842262,-460.0,0.00019085,2]
[368624493,1751245842271,-460.0,0.00019085,2]
[368624494,1751245842280,-892.66,0.00019086,2]
[368624495,1751245842290,-460.0,0.00019086,2]
[368624496,1751245842299,-460.0,0.00019086,2]
[368624497,1751245842308,-460.0,0.00019086,2]
[368624498,1751245842317,-460.0,0.00019086,2]
[368624499,1751245842327,-535.58,0.00019086,2]
[368624500,1751245842336,-460.0,0.00019086,2]
[368624501,1751245842346,-720.33,0.00019086,2]
[368624502,1751245842355,-460.0,0.00019086,2]
[368624503,1751245842364,-510.71,0.00019086,2]
[368624504,1751245842376,-460.0,0.00019086,2]
[368624505,1751245842386,-460.0,0.00019086,2]
[368624506,1751245842395,-569.32,0.00019086,2]
[368624507,1751245842404,-460.0,0.00019086,2]
[368624508,1751245842415,-562.86,0.00019086,2]
[368624509,1751245842425,-801.14,0.00019086,2]
[368624510,1751245842436,-617.62,0.00019086,2]
[368624511,1751245842445,-460.0,0.00019086,2]
[368624512,1751245842454,-3976.25,0.00019086,2]
[368624513,1751245842464,-460.0,0.00019086,2]
[368624515,1751245842473,-460.0,0.00019086,2]
[368624516,1751245842482,-460.0,0.00019086,2]
[368624517,1751245842491,-1246.0,0.00019086,2]
[368624518,1751245842501,-460.0,0.00019086,2]
[368624520,1751245842510,-808.37,0.00019086,2]
[368624522,1751245842519,-460.0,0.00019087,2]
[368624523,1751245842529,-460.0,0.00019087,2]
[368624525,1751245842539,-381.51,0.00019087,2]
[368624526,1751245842548,-492.76,0.00019087,2]
[368624527,1751245842557,-460.0,0.00019087,2]
[368624528,1751245842568,-460.0,0.00019087,2]
[368624529,1751245842578,-460.0,0.00019087,2]
[368624530,1751245842587,-666.43,0.00019087,2]
[368624532,1751245842596,-549.17,0.00019087,2]
[368624534,1751245842606,-460.0,0.00019087,2]
[368624536,1751245842615,-460.0,0.00019087,2]
[368624537,1751245842625,-460.0,0.00019087,2]
[368624538,1751245842634,-460.0,0.00019087,2]
[368624539,1751245842644,-644.17,0.00019088,2]
[368624540,1751245842654,-1204.1,0.00019088,2]
[368624541,1751245842663,-460.0,0.00019088,2]
[368624542,1751245842673,-460.0,0.00019089,2]
[368624543,1751245842683,-584.83,0.00019089,2]
[368624544,1751245842692,-1594.45,0.00019089,2]
[368624546,1751245842702,-979.73,0.00019089,2]
[368624550,1751245842711,-255.90717814,0.00019089,2]
[368624553,1751245842721,-460.0,0.00019089,2]
[368624555,1751245842730,-1605.68,0.00019089,2]
[368624556,1751245842739,-1309.48,0.00019089,2]
[368624560,1751245842748,-460.0,0.00019089,2]
[368624563,1751245842758,-818.0,0.00019089,2]
[368624566,1751245842768,-945.21,0.00019089,2]
[368624569,1751245842777,-492.34,0.00019089,2]
[368624572,1751245842787,-460.0,0.00019089,2]
[368624575,1751245842797,-460.0,0.0001909,2]
[368624577,1751245842806,-153.0,0.000191,2]
[368624579,1751245842815,-366.235562,0.000191,2]
[368624581,1751245842824,-5000.0,0.00019102,2]
[368624582,1751245842833,-160.0,0.00019163,2]
[368624584,1751245842843,-500.0,0.00019164,2]
[368624585,1751245842853,-160.0,0.00019165,2]
[368624587,1751245842862,-12567.05932091,0.00019165,2]
[368624589,1751245842872,-230.30207649,0.00019165,2]
[368624591,1751245842882,-837.1293463,0.00019165,2]
[368624593,1751245842892,-160.0,0.00019165,2]
[368624595,1751245842902,-213.82031328,0.00019165,2]
[368624597,1751245842912,-160.0,0.00019165,2]
[368624599,1751245842922,-214.97967293,0.00019165,2]
[368624601,1751245842931,-160.0,0.00019165,2]
[368624603,1751245842941,-160.0,0.00019165,2]
[368624605,1751245842950,-847.31290578,0.00019165,2]
[368624607,1751245842960,-26340.02014207,0.00019178,2]
[368624610,1751245843107,-7519.56825467,0.00019178,2]
[368624611,1751245843118,-810.27166094,0.00019178,2]
[368624612,1751245843131,-2371.38918154,0.00019178,2]
[368624617,1751245843259,-262.70693885,0.00019178,2]
[368624618,1751245843271,-1365.28998582,0.00019178,2]
[368624619,1751245844121,-10952.89673853,0.00019178,2]
[368624620,1751245844134,-4885.35450368,0.00019178,2]
[368624651,1751245865906,-174.81982182,0.00018263,2]
[368624652,1751246031362,-183.32674217,0.00018262,2]
[368624653,1751246036634,-276.67325783,0.00018262,2]
[368624654,1751246036665,-13.42371795,0.00018262,2]
[368624655,1751246044200,473.42371795,0.000181,2]
[368624656,1751246078878,500.0,0.000183,14]
[368624657,1751246108258,-342.34103958,0.00018164,2]
[368624659,1751246212901,-89.03656085,0.00018164,2]
[368624660,1751246299389,-152.09943122,0.00018163,2]
[368624661,1751246305006,476.67,0.00023,30]
[368624662,1751246305878,-199.46270862,0.00018163,2]
[368624663,1751246309091,-89.97102562,0.00018163,2]
[368624666,1751246484817,303.976853,0.00013699,2]
[368624667,1751246686655,-185.65829905,0.00018162,2]
[368624668,1751246689725,-151.95642009,0.00018162,2]
[368624669,1751246692770,-48.72680062,0.00018162,2]
[368624670,1751246722501,-192.24145768,0.000182,2]
[368624676,1751246939385,208.648498,0.00017261,2]
[368624685,1751247014568,172.69935009,0.000181,2]
[368624744,1751247032493,-807.75854232,0.000182,2]
[368624746,1751247032505,-1000.0,0.000182,3]
[368624748,1751247032515,-300.0,0.00018258,2]
[368624749,1751247032524,-300.0,0.00018259,2]
[368624752,1751247032533,-300.0,0.00018259,2]
[368624754,1751247032543,-1200.0,0.00018259,2]
[368624755,1751247032552,-300.0,0.00018259,2]
[368624758,1751247032561,-460.0,0.0001826,2]
[368624760,1751247032571,-460.0,0.0001826,2]
[368624762,1751247032581,-1403.28,0.0001826,2]
[368624764,1751247032591,-460.0,0.0001826,2]
[368624766,1751247032600,-460.0,0.00018261,2]
[368624768,1751247032610,-460.0,0.00018261,2]
[368624770,1751247032619,-460.0,0.00018261,2]
[368624772,1751247032629,-460.0,0.00018261,2]
[368624774,1751247032639,-460.0,0.00018261,2]
[368624776,1751247032648,-460.0,0.00018261,2]
[368624778,1751247032657,-460.0,0.00018261,2]
[368624780,1751247032666,-460.0,0.00018261,2]